Cogmind - Beta 16.1 @@@ ROGUE MODE // 2026.03.20 @ 21:55:11 Player: DocSui Result: Destroyed by S-10 Pest with Light Assault Rifle Performance ------------- Evolutions (2) 1000 Regions Visited (3) 600 Robots Destroyed (56) 280 Value Destroyed (1555) 1555 Prototype IDs (0) 0 Alien Tech Used (0) 0 Bonus (0) 0 TOTAL SCORE: 3435 Bonus ------- None Cogmind --------- Core Integrity 0/550 Matter 300/300 Energy 100/100 System Corruption 0% Temperature Cool (0) Movement Core (700) Ox13 Location -8/Materials Parts ------- > --- POWER (2) -------- (None) > --- PROPULSION (3) --- (None) > --- UTILITY (3) ------ Improved Heat Sink High-capacity Storage Unit > --- WEAPON (3) ------- (None) > --- INVENTORY (20) --- Light Deuterium Engine Light Deuterium Engine Light Nuclear Core Peak State ------------ > --- POWER ------------ Light Nuclear Core Light Nuclear Core > --- PROPULSION ------- Improved Treads Improved Treads Armored Treads > --- UTILITY ---------- Compact Matter Pod Light Armor Plating Hacking Suite > --- WEAPON ----------- Light EM Pulse Cannon Minigun Minigun > --- INVENTORY -------- Light Ion Engine Improved Treads Particle Charger Beam Rifle Flak Cannon [Rating: 29] Favorites ----------- Power Light Nuclear Core Engine Ion Engine Power Core Light Nuclear Core Propulsion Improved Treads Treads Improved Treads Wheel Wheel Utility Compact Matter Pod Device Improved Heat Sink Storage Compact Matter Pod Processor Transport Network Coupler Hackware Hacking Suite Protection Light Armor Plating Weapon Light Assault Rifle Energy Gun Particle Gun Energy Cannon Light EM Pulse Cannon Ballistic Gun Light Assault Rifle Ballistic Cannon Flak Cannon Launcher Rocket Launcher Special Melee Weapon Improved Datajack Build | -11 -10 -9 -8 ------- Run | Yrd Mat Mat Mat Slots Evolved 4 | . . 2 2 Power 1 | . . 1 . Propulsion 1 | . . . 1 Utility 1 | . . . 1 Weapon 1 | . . 1 . Parts Attached 55 | 6 . 19 30 Power 14 | 1 . 7 6 Engine 11 | 1 . 6 4 Core 3 | . . 1 2 Reactor . | . . . . Propulsion 11 | 2 . 2 7 Treads 9 | 2 . 2 5 Leg . | . . . . Wheel 2 | . . . 2 Hover . | . . . . Flight . | . . . . Utility 13 | 1 . 5 7 Device 5 | . . 2 3 Storage 5 | 1 . 2 2 Processor 1 | . . . 1 Hackware 1 | . . . 1 Protection 1 | . . 1 . Artifact . | . . . . Weapon 17 | 2 . 5 10 Energy Gun 4 | . . 1 3 Energy Cannon 1 | . . . 1 Ballistic Gun 9 | 2 . 3 4 Ballistic Cannon 1 | . . . 1 Launcher 1 | . . 1 . Special Weapon . | . . . . Impact Weapon . | . . . . Slashing Weapon . | . . . . Piercing Weapon . | . . . . Special Melee Weapon 1 | . . . 1 Unidentified Prototypes . | . . . . Parts Lost 21 | . . 2 19 Power 4 | . . 1 3 Propulsion 6 | . . . 6 Utility 4 | . . . 4 Weapon 7 | . . 1 6 Highest Loss Streak 6 | . . 1 6 To Critical Strikes 1 | . . . 1 Average Backups 2 | . . 2 3 Power 1 | . . . 1 Propulsion . | . . 1 . Utility . | . . 1 . Weapon . | . . . . Tool/Special . | . . . . Unused Backups 2 | . . 2 . Power . | . . . . Propulsion . | . . . . Utility 1 | . . 1 . Weapon 1 | . . 1 . Tool/Special . | . . . . Average Slot Usage (%) 84 | . 85 92 80 Engine 11 | . 14 18 7 Core 6 | . . 1 10 Treads 20 | . 28 22 16 Device 3 | . . 4 4 Storage 12 | . 14 12 11 Hackware 1 | . . . 2 Protection 1 | . . . 3 Energy Gun 5 | . . 3 8 Energy Cannon 1 | . . . 2 Ballistic Gun 17 | . 28 25 9 Launcher 1 | . . 3 . Peak Build Rating 29 | 6 6 14 29 Average Rating 15 | 4 6 9 21 On Entrance 6 | . 6 6 12 Avg Prop Armor Cover (%) 12 | . . . 12 Naked Turns . | . . . . Heaviest Build 62 | 13 13 19 62 Greatest Support 69 | 40 40 46 69 Greatest Overweight (x) 20 | . . . 20 Average Overweight (x) . | . . . 1 Largest Inventory Capacity 20 | 8 8 8 20 Average Capacity 8 | 6 8 6 9 Most Carried 7 | 2 . 7 5 Average Carried 2 | . . 2 3 Final Capacity 20 | 8 8 5 20 Final Carried 5 | . . 5 3 Class Distribution -------------------- 33% | Mutant 28% | Scavenger-Gunner 17% | Scavenger-Mutant 8% | Gunner 7% | Tank Dominant Class ---------------- Mutant | -10/Materials Scavenger-Gunner | -9/Materials Mutant | -8/Materials Resources | -11 -10 -9 -8 ----------- Run | Yrd Mat Mat Mat Matter Collected 1881 | 213 182 479 1007 Remotely . | . . . . Salvage Created 1722 | . 203 556 963 Parts 102 | . 9 41 52 Haulers Intercepted . | . . . . Recyclers Shooed 3 | . . 1 2 Parts Field Recycled . | . . . . Retrieved Matter . | . . . . Parts Self-Destructed . | . . . . Prevented . | . . . . Parts Restored . | . . . . Kills | -11 -10 -9 -8 ------- Run | Yrd Mat Mat Mat Combat Hostiles Destroyed 44 | . 6 17 21 Guns 39 | . 6 16 17 Cannons 3 | . . . 3 AOE 2 | . . 1 1 Classes Destroyed 8 | . 3 3 2 Worker 6 | . . 1 5 Builder 1 | . . 1 . Watcher 5 | . 1 2 2 Swarmer 15 | . 3 8 4 Grunt 21 | . 3 7 11 Sentry 5 | . . 2 3 Hunter 2 | . . . 2 Heavy 1 | . . . 1 Best Kill Streak 7 | . 3 7 6 Combat Bots Only 5 | . 3 5 4 Max Kills in Single Turn 2 | . 1 2 2 Gunslinging 1 | . . . 1 Exploded 1 | . . 1 1 Melee . | . . . . Uniques/NPCs Destroyed . | . . . . Combat | -11 -10 -9 -8 -------- Run | Yrd Mat Mat Mat Hostile Shots Fired 391 | . 49 120 222 Missed 123 | . 15 48 60 Hits 268 | . 34 72 162 Projectile 268 | . 34 72 162 AOE 1 | . . . 1 Critical Strikes 7 | . . . 7 Damage Taken 3766 | . 334 741 2691 Core 728 | . 49 123 556 Absorbed by Shields . | . . . . Regen/Repaired (Parts) 67 | . . . 67 Core Remaining (%) 83 | 100 80 69 . Volleys Fired 199 | . 34 64 101 Largest 3 | . 2 3 3 Hottest 186 | . 40 80 186 Shots Fired 441 | . 68 169 204 Gun 392 | . 68 167 157 Cannon 47 | . . . 47 Launcher 2 | . . 2 . Special . | . . . . Kinetic 355 | . 68 149 138 Thermal 72 | . . 18 54 Explosive 2 | . . 2 . Electromagnetic 12 | . . . 12 Robot Hit Streak 12 | . 7 6 12 Robot Miss Streak 7 | . 7 4 7 Penetration Max 1 | . . . 1 Secondary Targets 5 | . 2 1 2 Max Gunslinging Chain 1 | . 1 1 1 Shots Hit Robots 256 | . 38 95 123 Core Hits 120 | . 13 37 70 Critical Kills 1 | . . 1 . Critical Parts Destroyed 1 | . . 1 . Critical Strikes 7 | . . 2 5 Burn 5 | . . . 5 Destroy 2 | . . 2 . Melee Attacks . | . . . . Impact . | . . . . Slashing . | . . . . Piercing . | . . . . Sneak Attacks . | . . . . Combat Hostiles . | . . . . Follow-up Attacks . | . . . . Damage Inflicted 3742 | . 378 961 2403 Guns 2714 | . 378 869 1467 Cannons 848 | . . . 848 Explosions 173 | . . 89 84 Melee . | . . . . Ramming 7 | . . 3 4 Kinetic 2843 | . 378 772 1693 Thermal 658 | . . 97 561 Explosive 89 | . . 89 . Electromagnetic 145 | . . . 145 Impact . | . . . . Slashing . | . . . . Piercing . | . . . . Highest Corruption 3 | . 3 . . Average Corruption 2 | . 2 . . Corruption Purged . | . . . . Corruption Blocked . | . . . . Effects 3 | . 3 . . Message Errors 1 | . 1 . . Matter Fused 2 | . 2 . . Overload Shots . | . . . . Overflow Damage 6 | . . . 6 Projectiles . | . . . . Explosions 6 | . . . 6 Melee . | . . . . Knockbacks 9 | . . . 9 Impact . | . . . . Kinetic 8 | . . . 8 Secondary 1 | . . . 1 Self-Inflicted Damage . | . . . . Shots . | . . . . Rammed 3 | . . . 3 Targets Rammed 4 | . . 1 3 Kicked . | . . . . Crushed 1 | . . 1 . Highest Temperature 537 | . 12 192 537 Average Temperature 111 | . 7 45 145 Received Heat Transfer 1062 | . 126 225 711 Effects 19 | . . . 19 Shutdowns 7 | . . . 7 Energy Bleed 1 | . . . 1 Interference 7 | . . . 7 Short Circuit 3 | . . . 3 Damage (core) 1 | . . . 1 Siege Activations . | . . . . Martial Activations . | . . . . Shielding Activations . | . . . . Robots Disrupted . | . . . . Combat Hostiles . | . . . . Robots Corrupted . | . . . . Combat Hostiles . | . . . . Parts Fried . | . . . . Impact Corruptions . | . . . . Robots Melted . | . . . . Combat Hostiles . | . . . . Parts Melted 1 | . . . 1 Heat Transferred 1792 | . . 225 1567 Parts Sabotaged . | . . . . Parts Stolen . | . . . . Parts Stripped . | . . . . Power Chain Reactions 1 | . . . 1 Alert | -11 -10 -9 -8 ------- Run | Yrd Mat Mat Mat Maximum Alert Level . | . . . . Low Security (%) 100 | 100 100 100 100 Level 1 . | . . . . Level 2 . | . . . . Level 3 . | . . . . Level 4 . | . . . . Level 5 . | . . . . High Security . | . . . . Max Security . | . . . . Peak Influence 190 | . 60 179 190 Initial 72 | . . . 72 Average 87 | . 26 91 107 Influence Increases 1349 | . 157 499 693 Destroy 0b10 Robot/C 880 | . 120 340 420 Destroy 0b10 Robot/NC 60 | . 5 20 35 Destroy Leader 220 | . 32 74 114 Successful Hack 4 | . . 4 . Disable Machine 45 | . . 15 30 Destroy Structure 20 | . . 16 4 Lose Combat Pursuer 120 | . . 30 90 Influence Decreases 1302 | . 157 326 819 Entered New Map 101 | . . . 101 Time Decay 991 | . 157 306 528 Lost Part 210 | . . 20 190 Squads Dispatched 10 | . 2 2 6 Investigation 4 | . 1 1 2 Extermination . | . . . . Reinforcement 6 | . 1 1 4 Assault . | . . . . Garrison . | . . . . Intercept . | . . . . Searches Triggered . | . . . . Construction Impeded . | . . . . Haulers Reinforced . | . . . . Active Scanning Responses . | . . . . Cargo Convoy Interrupts . | . . . . Stealth | -11 -10 -9 -8 --------- Run | Yrd Mat Mat Mat Distress Signals 2 | . . 1 1 Communications Jammed . | . . . . Distress Signals . | . . . . Times Spotted 70 | . 8 23 39 Peak Tracking Total 10 | . 4 5 10 Tactical Retreats 5 | . . 2 3 Traps | -11 -10 -9 -8 ------- Run | Yrd Mat Mat Mat Traps Triggered 4 | . 3 . 1 Indirectly . | . . . . Trap Hack Attempts . | . . . . Triggered . | . . . . Disarmed . | . . . . Reprogrammed . | . . . . Reused . | . . . . Traps Extracted . | . . . . Installed . | . . . . Triggered . | . . . . Machines | -11 -10 -9 -8 ---------- Run | Yrd Mat Mat Mat Machines Disabled 3 | . . 1 2 Max in Single Turn 1 | . . 1 1 Machines Repaired . | . . . . Machines Dismantled . | . . . . Machines Sabotaged . | . . . . Overloaded Fab Kills . | . . . . Hacking | -11 -10 -9 -8 --------- Run | Yrd Mat Mat Mat Machines Accessed 9 | . 1 4 4 Terminals 5 | . 1 2 2 Fabricators . | . . . . Repair Stations 3 | . . 1 2 Recycling Units 1 | . . 1 . Scanalyzers . | . . . . Garrison Access . | . . . . Total Hacks 28 | . 1 18 9 Successful 18 | . . 12 6 Failed 10 | . 1 6 3 Catastrophic . | . . . . Database Lockouts . | . . . . Manual . | . . . . Terminals 8 | . 1 3 4 Fabricators . | . . . . Repair Stations 11 | . . 6 5 Recycling Units 9 | . . 9 . Scanalyzers . | . . . . Garrison Access . | . . . . Terminal Hacks 4 | . . 2 2 Emergency Access Points 1 | . . . 1 Terminal Index 1 | . . 1 . Alert Level 1 | . . 1 . Dispatch Records 1 | . . . 1 Fabricator Hacks . | . . . . Repair Station Hacks 6 | . . 2 4 Scan Component 4 | . . 2 2 Repair 2 | . . . 2 Recycling Unit Hacks 8 | . . 8 . Recycle Component 6 | . . 6 . Report Inventory 2 | . . 2 . Scanalyzer . | . . . . Garrison Access Hacks . | . . . . Unauthorized Hacks . | . . . . Terminals . | . . . . Fabricators . | . . . . Repair Stations . | . . . . Recycling Units . | . . . . Scanalyzers . | . . . . Garrison Access . | . . . . Data Cores Recovered . | . . . . Used . | . . . . Hacking Detections 5 | . . 2 3 Full Trace Events 3 | . . 2 1 Feedback Events . | . . . . Feedback Blocked . | . . . . Robot Schematics Acquired . | . . . . Robots Built . | . . . . Authchips . | . . . . Time . | . . . . Total Robot Build Rating . | . . . . Part Schematics Acquired . | . . . . Parts Built . | . . . . Authchips . | . . . . Time . | . . . . Total Part Build Rating . | . . . . Part Studies Acquired . | . . . . Parts Repaired 2 | . . . 2 Time 70 | . . . 70 Parts Recycled 6 | . . 6 . Recycled Matter . | . . . . Retrieved Matter . | . . . . Retrieved Components . | . . . . Parts Scanalyzed . | . . . . Part Schematics Acquired . | . . . . Parts Damaged . | . . . . Bothacking | -11 -10 -9 -8 ------------ Run | Yrd Mat Mat Mat Used RIF Installer . | . . . . Robots Hacked . | . . . . Non-combat . | . . . . Combat . | . . . . Robot Hacks Applied . | . . . . Relay Couplers Released . | . . . . Fabnet Peak Effective % . | . . . . Robots Rewired . | . . . . Allies Hacked . | . . . . Hacks Repelled . | . . . . Allies | -11 -10 -9 -8 -------- Run | Yrd Mat Mat Mat Total Allies . | . . . . Largest Group . | . . . . Highest-Rated Group . | . . . . Highest-Rated Ally . | . . . . Total Orders . | . . . . Ally Attacks . | . . . . Total Damage . | . . . . Kills . | . . . . Allies Corrupted . | . . . . Allies Melted . | . . . . Intel | -11 -10 -9 -8 ------- Run | Yrd Mat Mat Mat Active Infowar (turns) 414 | . . 231 183 T.N.C. 183 | . . . 183 ECM 231 | . . 231 . Robot Analysis Total . | . . . . Derelict Logs Recovered . | . . . . Drone Launches . | . . . . Drone Recoveries . | . . . . Exploration | -11 -10 -9 -8 ------------- Run | Yrd Mat Mat Mat Turns Passed 2992 | 81 446 902 1563 Spaces Moved 1206 | 47 220 419 520 Core 47 | 5 . . 42 Treads 1152 | 42 220 419 471 Legs . | . . . . Wheels 7 | . . . 7 Hover . | . . . . Flight . | . . . . Fastest Speed 50 | 50 160 160 80 Average Speed 190 | 148 160 160 232 Slowest Speed 1050 | 160 160 160 1050 Overloaded Moves . | . . . . Propulsion Burnouts . | . . . . Robots Hopped . | . . . . Potential Cave-ins . | . . . . Cave-ins Triggered . | . . . . Exploration Rate (%) 27 | 3 43 35 27 Regions Visited 3 Branch Regions . Pre-discovered Areas . | . . . . Known Exits Taken . | . . . . Unknown Exits Taken 3 | 1 1 1 . Scrap Searched . | . . . . Spaces Dug . | . . . . Terrain Destroyed 28 | . . 24 4 Melee . | . . . . Projectile . | . . . . AOE 28 | . . 24 4 Terrain Rammed . | . . . . Walls Destroyed . | . . . . Machines Disabled . | . . . . Actions | -11 -10 -9 -8 --------- Run | Yrd Mat Mat Mat Total 1555 | 58 253 539 705 Wait . | . . . . Move 1203 | 46 219 418 520 Hop . | . . . . Pick Up 51 | 6 . 21 24 Fast Attach 11 | . . 2 9 Attach 36 | 6 . 10 20 Detach 9 | . . 6 3 Swap 15 | . . 9 6 Drop 27 | . . 8 19 Fire 199 | . 34 64 101 Melee . | . . . . Ram . | . . . . Kick . | . . . . Crush 4 | . . 1 3 Escape Stasis . | . . . . Rewire . | . . . . Trap . | . . . . Miscellaneous . | . . . . Route ------- -11/Scrapyard -10/Materials -9/Materials (discovered 2 exits: *Mat / [*Min]) -8/Materials (discovered 1 exit: [*Fac]) History --------- Turn | Location | Event 18 | -11/Scrapyard | Discovered new exit (range 16) 82 | -11/Scrapyard | Entered Materials 311 | -10/Materials | Build established: Mutant 409 | -10/Materials | Discovered new exit (range 16) 528 | -10/Materials | Entered another Materials area 528 | -9/Materials | Evolved 2 slots: Power x1, Weapon x1 618 | -9/Materials | Discovered new exit (range 11) 1148 | -9/Materials | Build established: Scavenger-Gunner 1424 | -9/Materials | Discovered new exit (range 4) 1430 | -9/Materials | Entered another Materials area 1430 | -8/Materials | Evolved 2 slots: Propulsion x1, Utility x1 1497 | -8/Materials | Repaired Lgt. Assault Rifle 1664 | -8/Materials | Build established: Scavenger-Mutant 2042 | -8/Materials | Lost 6 parts (2n2u2w) 2196 | -8/Materials | Discovered new exit (range 13) 2370 | -8/Materials | Repaired Broken Beam Rifle 2400 | -8/Materials | Core integrity fell below 50% 2738 | -8/Materials | Build established: Scavenger-Gunner 2985 | -8/Materials | Core integrity fell below 20% 2993 | -8/Materials | Destroyed by S-10 Pest with Light Assault Rifle Last Messages --------------- R-06 Scavenger collects Lgt. Ion Engine. R-06 Scavenger collects Broken Lgt. Treads. R-06 Scavenger collects Broken Imp. Treads. ALERT: Security rotation in progress. ALERT: Suspicious intruders detected, dispatching Specialist reinforcements to area. [Achievement: Heavy Suspicion] Nuclear Reactor explodes. Gauss Rifle destroyed. Lgt. Nuclear Core destroyed. Lgt. Deuterium Engine destroyed. Terminal disabled. Particle Gun destroyed. U-05 Engineer lays Concrete. U-05 Engineer builds a Door. C-30 ARC bursts open, deploying its payload. S-10 Pest unfolds itself. U-05 Engineer builds a Wall. Com. Matter Pod destroyed. U-05 Engineer builds a Wall. Map ----- +----------------------------------------------------+ | ??????????????????????# #????????????????# #?? | | ??????????????????????# #????????????????# #?? | | ??????????????????????# #????????????????# #?? | | ??????????????????????# #????????????????# #?? | | ??????????????????????# #????????????????# #?? | | ??????????????????????# #????????????????# #?? | | ??????????????????????# #?######?????????# #?? | | ??????????????????????# #? #?????????# #?? | | ??????????????????????# # #??######## #?? | | ??????????????????????# # #??# # = #?? | | ??????????????????????# / "T" #??# #= [#?? | | ??????????????????????# # """ #??# " " #* =#?? | | ??????????????????????# # #??# "R" + ### | | ??????????????????????# s#?######??# """ # ### | | ??????????????????????# #?????????# #=* % | | ??????????????????????# #?????????########! *### | | ??????????????????????# #?????????# =#?? | | ??????????????????????# %#?????????# #?? | | ??????????????????????#sss#?????????# #?? | | ??????????????????????# #?????????# ########?? | | ??????????????????????# ########?## #????????? | | ??????????????????????# # #T #????????? | | ??????????????????????# ## #????????? | | ??????????????????????# # #????????? | | ??????????????????????#t # # +????????? | | ????????????########### @u # #????????? | | ?????????+ Hu u# x #????????? | | ????????????########+## # #????????? | | ???????????????# #### "# < #????????? | | ???????????????#= #??# "# #????????? | | ???????????????#= """ #??## #####????????? | | ???????????????# """ #???###+#######????????????? | | ???????????????# """ ####### #??????????????????? | | ???????????????# + #??????????????????? | | ???????????????################??????????????????? | | ?????????????????????????????????????????????????? | | ?????????????????????????????????????????????????? | | ?????????????????????????????????????????????????? | | | | | | | | | | | | | | | | | | | | | | | | | +----------------------------------------------------+ Best States ------------- Heat Dissipation 45 Energy Generation 23 Energy Capacity 400 Matter Stores 450 Matter Capacity 450 Sight Range 16 Terrain Scan Density 10 ECM Strength 1 Armor Coverage 150 Evasion (%) 40 Recoil Reduction 3 Particle Charging 15 Offensive Hacking 10 Item Schematics ----------------- None Robot Schematics ------------------ None Fabricated ------------ Nothing Repaired ---------- Lgt. Assault Rifle | 37% | -8/Materials Beam Rifle | 77% | -8/Materials | Broken Studied --------- None Alien Tech Used ----------------- None Achievements -------------- Bumper Bots DATA ERROR: Steam Global Achievement% For Emergencies Only Ghost 'Em Heavy Suspicion Organ Harvest There's More Where That Came From Well Done Challenges ------------ None Game ------ Seed SurgeRainbowProtomatter Manual? 0 Play Time 00:47:46 Cumulative 4.6 hours Start 2026.03.20 @ 21:07:25 End 2026.03.20 @ 21:55:11 Sessions 1 Manual Loads 0 Difficulty Rogue Special Mode None Game No. 5 Rogue 5 Adventurer 0 Explorer 0 Win Type - Total 0 Types 0/0/0/0/0/0/0/0/0/0 Lore% 5 Gallery% 8 Achievement% 6 Wizard Run 0 Options --------- Layout 1 ASCII 0 Keyboard 0 Movement Mouse Keybinds 0 Fullscreen 2 Font 24/Smallcaps Map View 50x35 Zoom Use 0% Tactical HUD 0 Map Filters NONE Filters NONE Steam 1 RUN: c1870d1e-65ce-49f6-a606-4c9eae9d9842